[Event "FIDE World Cup O10-TB 2024"]
[Site "Batumi"]
[Date "2024.07.01"]
[Round "1.19"]
[White "Obado, Sean Adrich"]
[Black "Muhammad Shayan Noushad Ibrahi"]
[Result "0-1"]
[ECO "B12"]
[WhiteElo "1631"]
[BlackElo "1785"]
[Annotator "NA RC"]
[PlyCount "56"]
[EventDate "2024.06.23"]
[EventType "swiss"]
[EventCountry "GEO"]
[SourceTitle "playchess.com"]
[Source "ChessBase"]
[SourceQuality "1"]
[TimeControl "5400+30"]

1. e4 {[%emt 0:00:02]} c6 {[%emt 0:01:21]} 2. d4 {[%emt 0:00:04]} d5 {[%emt 0:01:22]} 3. e5 {[%emt 0:00:05]} Bf5 {[%emt 0:01:32]} 4. Ne2 {[%emt 0:00:07]} e6 {[%emt 0:01:36]} 5. Ng3 {[%emt 0:00:57]} Bg6 {[%emt 0:03:37]} 6. h4 {[%emt 0:00:15]} h6 {[%emt 0:02:29]} 7. h5 {[%emt 0:00:15]} Bh7 {[%emt 0:01:21]} 8. Bd3 {[%emt 0:00:07]} Bxd3 {[%emt 0:01:36]} 9. cxd3 {[%emt 0:00:16]} Ne7 {[%emt 0:01:31]} 10. Qg4 {[%emt 0:06:56]} Nd7 {[%emt 0:04:18]} 11. O-O {[%emt 0:10:20]} c5 {[%emt 0:14:35]} 12. dxc5 {[%emt 0:17:51]} Nxe5 {[%emt 0:03:36]} 13. Qe2 {[%emt 0:02:22]} N7c6 {[%emt 0:05:44]} 14. d4 {[%emt 0:07:37]} Nd7 {[%emt 0:01:08]} 15. Be3 {[%emt 0:03:48]} Qh4 {[%emt 0:03:20]} 16. Nc3 {[%emt 0:11:43]} Be7 {[%emt 0:04:56]} 17. Rfd1 {[%emt 0:12:28]} O-O {[%emt 0:44:58]} 18. b4 {[%emt 0:02:00]} Rae8 {[%emt 0:00:00]} 19. a4 {[%emt 0:03:58]} f5 {[%emt 0:00:00]} 20. a5 {[%emt 0:10:58]} f4 {[%emt 0:00:00]} 21. b5 {[%emt 0:01:48]} Nd8 {[%emt 0:00:00]} 22. c6 {[%emt 0:05:11]} bxc6 {[%emt 0:02:30]} 23. bxc6 {[%emt 0:01:03]} Nxc6 {[%emt 0:00:00]} 24. Bxf4 {[%emt 0:01:06]} Bb4 {[%emt 0:00:00]} 25. Bd2 {[%emt 0:00:46]} Nxd4 {[%emt 0:00:00]} 26. Qf1 {[%emt 0:00:52]} Ne5 {[%emt 0:00:00]} 27. Nh1 {[%emt 0:00:34]} Nef3+ {[%emt 0:00:00]} 28. gxf3 {[%emt 0:00:10]} Nxf3+ {[%emt 0:00:00]} 0-1

[Event "FIDE World Cup O10-TB 2024"]
[Site "Batumi"]
[Date "2024.07.01"]
[Round "1.20"]
[White "Akramov, Khusan"]
[Black "Tsulaia, Giorgi"]
[Result "1/2-1/2"]
[ECO "A20"]
[WhiteElo "1477"]
[BlackElo "1646"]
[Annotator "NA RC"]
[PlyCount "103"]
[EventDate "2024.06.23"]
[EventType "swiss"]
[EventCountry "GEO"]
[SourceTitle "playchess.com"]
[Source "ChessBase"]
[SourceQuality "1"]
[TimeControl "5400+30"]

1. c4 {[%emt 0:00:04]} e5 {[%emt 0:00:08]} 2. g3 {[%emt 0:00:04]} c6 {[%emt 0:05:45]} 3. Bg2 {[%emt 0:00:08]} d5 {[%emt 0:00:19]} 4. cxd5 {[%emt 0:00:05]} cxd5 {[%emt 0:00:03]} 5. d4 {[%emt 0:00:10]} e4 {[%emt 0:02:34]} 6. a3 {[%emt 0:00:05]} Nc6 {[%emt 0:00:46]} 7. Nc3 {[%emt 0:00:08]} Be6 {[%emt 0:00:35]} 8. e3 {[%emt 0:00:08]} a6 {[%emt 0:00:59]} 9. h3 {[%emt 0:00:06]} Bd6 {[%emt 0:00:50]} 10. Nge2 {[%emt 0:00:43]} f5 {[%emt 0:01:51]} 11. Nf4 {[%emt 0:00:31]} Bxf4 {[%emt 0:00:29]} 12. gxf4 {[%emt 0:00:38]} Nf6 {[%emt 0:01:25]} 13. Bd2 {[%emt 0:00:23]} O-O {[%emt 0:05:46]} 14. O-O {[%emt 0:00:58]} b5 {[%emt 0:01:29]} 15. Kh2 {[%emt 0:00:14]} Qe8 {[%emt 0:00:54]} 16. Rg1 {[%emt 0:00:29]} Qh5 {[%emt 0:03:52]} 17. Qxh5 {[%emt 0:00:16]} Nxh5 {[%emt 0:00:05]} 18. f3 {[%emt 0:00:08]} Nf6 {[%emt 0:01:54]} 19. Rac1 {[%emt 0:00:12]} Rac8 {[%emt 0:00:53]} 20. fxe4 {[%emt 0:00:42]} fxe4 {[%emt 0:01:21]} 21. Bf1 {[%emt 0:00:56]} Nb8 {[%emt 0:02:28]} 22. Be2 {[%emt 0:00:25]} Kh8 {[%emt 0:01:00]} 23. Na2 {[%emt 0:00:13]} Rxc1 {[%emt 0:00:53]} 24. Rxc1 {[%emt 0:00:05]} Rc8 {[%emt 0:00:36]} 25. Bb4 {[%emt 0:01:23]} Rxc1 {[%emt 0:00:54]} 26. Nxc1 {[%emt 0:00:17]} Nfd7 {[%emt 0:00:57]} 27. Nb3 {[%emt 0:00:24]} Kg8 {[%emt 0:00:47]} 28. Bd6 {[%emt 0:00:19]} Nc6 {[%emt 0:01:03]} 29. Nc5 {[%emt 0:03:11]} Nxc5 {[%emt 0:01:03]} 30. Bxc5 {[%emt 0:00:44]} Na5 {[%emt 0:01:30]} 31. Bb4 {[%emt 0:00:56]} Nc4 {[%emt 0:00:56]} 32. Bxc4 {[%emt 0:00:14]} bxc4 {[%emt 0:00:19]} 33. Kg3 {[%emt 0:00:37]} Kf7 {[%emt 0:00:21]} 34. Bd6 {[%emt 0:00:23]} g6 {[%emt 0:00:17]} 35. Be5 {[%emt 0:00:14]} h5 {[%emt 0:00:34]} 36. Bd6 {[%emt 0:00:41]} Ke8 {[%emt 0:00:14]} 37. Bc5 {[%emt 0:00:50]} Kd7 {[%emt 0:00:39]} 38. h4 {[%emt 0:00:47]} Kc6 {[%emt 0:00:22]} 39. Bb4 {[%emt 0:01:26]} Bg4 {[%emt 0:00:12]} 40. Kf2 {[%emt 0:00:50]} Kb5 {[%emt 0:00:09]} 41. Ke1 {[%emt 0:00:37]} Ka4 {[%emt 0:00:21]} 42. Kd2 {[%emt 0:00:43]} Kb3 {[%emt 0:00:22]} 43. Bc3 {[%emt 0:00:55]} Bf3 {[%emt 0:00:26]} 44. Kc1 {[%emt 0:00:32]} Be2 {[%emt 0:00:30]} 45. Bb4 {[%emt 0:03:19]} Ka4 {[%emt 0:00:52]} 46. Kd2 {[%emt 0:01:10]} Bg4 {[%emt 0:00:31]} 47. Kc3 {[%emt 0:01:38]} Bd1 {[%emt 0:00:49]} 48. Kd2 {[%emt 0:00:11]} Bf3 {[%emt 0:00:05]} 49. Kc3 {[%emt 0:00:04]} Bd1 {[%emt 0:00:19]} 50. Kd2 {[%emt 0:00:07]} Bf3 {[%emt 0:00:08]} 51. Kc3 {[%emt 0:00:27]} Bd1 {[%emt 0:00:17]} 52. Kd2 {[%emt 0:04:20]} 1/2-1/2

[Event "FIDE World Cup O10-TB 2024"]
[Site "Batumi"]
[Date "2024.07.01"]
[Round "1.21"]
[White "Chkhartishvili, Lazare"]
[Black "Kiringoda, Thehas Rithmitha"]
[Result "1-0"]
[ECO "D05"]
[WhiteElo "1608"]
[BlackElo "1641"]
[Annotator "NA RC"]
[PlyCount "85"]
[EventDate "2024.06.23"]
[EventType "swiss"]
[EventCountry "GEO"]
[SourceTitle "playchess.com"]
[Source "ChessBase"]
[SourceQuality "1"]
[TimeControl "5400+30"]

1. d4 {[%emt 0:00:03]} d5 {[%emt 0:00:11]} 2. Nf3 {[%emt 0:00:03]} Nf6 {[%emt 0:00:09]} 3. e3 {[%emt 0:00:04]} e6 {[%emt 0:00:22]} 4. Bd3 {[%emt 0:00:15]} Bd6 {[%emt 0:00:35]} 5. O-O {[%emt 0:00:19]} O-O {[%emt 0:00:25]} 6. Nbd2 {[%emt 0:00:22]} c5 {[%emt 0:00:11]} 7. b3 {[%emt 0:00:06]} Nc6 {[%emt 0:00:13]} 8. Bb2 {[%emt 0:00:16]} b6 {[%emt 0:00:25]} 9. Ne5 {[%emt 0:00:38]} Ne7 {[%emt 0:00:20]} 10. f4 {[%emt 0:00:59]} Bb7 {[%emt 0:00:11]} 11. Rf3 {[%emt 0:16:22]} Ne4 {[%emt 1:32:58]} 12. Bxe4 {[%emt 0:09:47]} dxe4 {[%emt 0:00:00]} 13. Rh3 {[%emt 0:00:06]} Bxe5 {[%emt 0:00:00]} 14. Qh5 {[%emt 0:04:04]} h6 {[%emt 0:00:00]} 15. Qxe5 {[%emt 0:03:34]} Nc6 {[%emt 0:00:00]} 16. Qxe4 {[%emt 0:02:27]} Nxd4 {[%emt 0:00:00]} 17. Qxb7 {[%emt 0:03:57]} Ne2+ {[%emt 0:00:00]} 18. Kf1 {[%emt 0:00:12]} Qxd2 {[%emt 0:00:00]} 19. Qf3 {[%emt 0:00:20]} Nc3 {[%emt 0:00:00]} 20. e4 {[%emt 0:03:22]} Nb5 {[%emt 0:00:00]} 21. Bxg7 {[%emt 0:53:44]} Nd4 {[%emt 0:00:00]} 22. Qg3 {[%emt 0:00:00]} Qe2+ {[%emt 0:00:00]} 23. Kg1 {[%emt 0:00:00]} Qxe4 {[%emt 0:00:00]} 24. Bxd4+ {[%emt 0:00:00]} Qg6 {[%emt 0:00:00]} 25. Qh4 {[%emt 0:00:00]} cxd4 {[%emt 0:00:00]} 26. Rg3 {[%emt 0:00:00]} Kh7 {[%emt 0:00:00]} 27. Rxg6 {[%emt 0:00:00]} Kxg6 {[%emt 0:00:00]} 28. Qg4+ {[%emt 0:00:00]} Kf6 {[%emt 0:00:00]} 29. f5 {[%emt 0:00:00]} e5 {[%emt 0:00:00]} 30. Qh4+ {[%emt 0:00:00]} Kxf5 {[%emt 0:00:00]} 31. Qxh6 {[%emt 0:00:00]} f6 {[%emt 0:00:00]} 32. Rf1+ {[%emt 0:00:00]} Ke6 {[%emt 0:00:00]} 33. Qh3+ {[%emt 0:00:00]} Ke7 {[%emt 0:00:00]} 34. Qf5 {[%emt 0:00:00]} Rf7 {[%emt 0:00:00]} 35. h4 {[%emt 0:00:00]} Rg8 {[%emt 0:00:00]} 36. g4 {[%emt 0:00:00]} Rh8 {[%emt 0:00:00]} 37. g5 {[%emt 0:00:00]} Rxh4 {[%emt 0:00:00]} 38. g6 {[%emt 0:00:00]} Rf8 {[%emt 0:00:00]} 39. g7 {[%emt 0:00:00]} Rg8 {[%emt 0:00:00]} 40. Qxf6+ {[%emt 0:00:00]} Kd7 {[%emt 0:00:00]} 41. Qf7+ {[%emt 0:00:00]} Kd6 {[%emt 0:00:00]} 42. Rf6+ {[%emt 0:00:00]} Kc5 {[%emt 0:00:00]} 43. Qc4# {[%emt 0:11:00]} 1-0

[Event "FIDE World Cup O10-TB 2024"]
[Site "Batumi"]
[Date "2024.07.01"]
[Round "1.22"]
[White "Jibladze, Nikoloz"]
[Black "Wee, Yu Xi Lyndon"]
[Result "1-0"]
[ECO "C16"]
[WhiteElo "1612"]
[BlackElo "1408"]
[Annotator "NA RC"]
[PlyCount "43"]
[EventDate "2024.06.23"]
[EventType "swiss"]
[EventCountry "GEO"]
[SourceTitle "playchess.com"]
[Source "ChessBase"]
[SourceQuality "1"]
[TimeControl "5400+30"]

1. e4 {[%emt 0:00:10]} e6 {[%emt 0:00:13]} 2. d4 {[%emt 0:00:37]} d5 {[%emt 0:00:25]} 3. Nc3 {[%emt 0:00:10]} Bb4 {[%emt 0:00:19]} 4. e5 {[%emt 0:02:15]} Ne7 {[%emt 0:01:42]} 5. a3 {[%emt 0:02:07]} Ba5 {[%emt 0:00:27]} 6. b4 {[%emt 0:01:41]} Bb6 {[%emt 0:02:28]} 7. Na4 {[%emt 0:05:54]} Bd7 {[%emt 0:03:32]} 8. Nc5 {[%emt 0:04:45]} Nbc6 {[%emt 0:04:24]} 9. Nxb7 {[%emt 0:04:42]} Qb8 {[%emt 0:01:30]} 10. Nc5 {[%emt 0:00:55]} Bxc5 {[%emt 0:01:33]} 11. bxc5 {[%emt 0:00:04]} Nf5 {[%emt 0:01:03]} 12. Nf3 {[%emt 0:04:48]} O-O {[%emt 0:02:49]} 13. c3 {[%emt 0:01:14]} Na5 {[%emt 0:02:40]} 14. Bd3 {[%emt 0:05:00]} Qb3 {[%emt 0:02:39]} 15. O-O {[%emt 0:14:43]} Ba4 {[%emt 0:02:36]} 16. Qe2 {[%emt 0:08:14]} Nc4 {[%emt 0:02:40]} 17. g4 {[%emt 0:03:43]} Qxc3 {[%emt 0:02:32]} 18. gxf5 {[%emt 0:38:28]} Qxa1 {[%emt 1:05:58]} 19. f6 {[%emt 0:00:00]} g6 {[%emt 0:00:00]} 20. Bxc4 {[%emt 0:00:00]} dxc4 {[%emt 0:00:00]} 21. Qe3 {[%emt 0:00:00]} c3 {[%emt 0:00:00]} 22. Qh6 {[%emt 0:00:00]} 1-0

[Event "FIDE World Cup O10-TB 2024"]
[Site "Batumi"]
[Date "2024.07.01"]
[Round "1.24"]
[White "Popov, Aleksandr And"]
[Black "Dien James"]
[Result "1-0"]
[ECO "B01"]
[WhiteElo "1661"]
[BlackElo "1419"]
[Annotator "NA RC"]
[PlyCount "41"]
[EventDate "2024.06.23"]
[EventType "swiss"]
[EventCountry "GEO"]
[SourceTitle "playchess.com"]
[Source "ChessBase"]
[SourceQuality "1"]
[TimeControl "5400+30"]

1. e4 {[%emt 0:00:02]} d5 {[%emt 0:00:08]} 2. exd5 {[%emt 0:00:06]} Qxd5 {[%emt 0:00:10]} 3. Nc3 {[%emt 0:00:07]} Qd6 {[%emt 0:00:17]} 4. d4 {[%emt 0:00:26]} Nc6 {[%emt 0:00:16]} 5. Nb5 {[%emt 0:07:19]} Qd7 {[%emt 0:01:04]} 6. Bf4 {[%emt 0:06:40]} e5 {[%emt 0:06:04]} 7. dxe5 {[%emt 0:01:54]} Qe7 {[%emt 0:02:57]} 8. e6 {[%emt 0:08:31]} Qb4+ {[%emt 0:16:16]} 9. Qd2 {[%emt 0:08:39]} Qe4+ {[%emt 0:02:31]} 10. Be2 {[%emt 0:08:17]} Nb4 {[%emt 0:02:23]} 11. Nxc7+ {[%emt 0:06:35]} Ke7 {[%emt 0:01:46]} 12. O-O-O {[%emt 0:17:41]} Nxa2+ {[%emt 0:01:53]} 13. Kb1 {[%emt 0:01:18]} Bxe6 {[%emt 0:01:08]} 14. Nxa8 {[%emt 0:04:11]} Kf6 {[%emt 0:01:41]} 15. Bg5+ {[%emt 0:00:40]} Ke5 {[%emt 0:00:45]} 16. f4+ {[%emt 0:00:07]} Kf5 {[%emt 0:00:56]} 17. g4+ {[%emt 0:00:54]} Kg6 {[%emt 0:00:08]} 18. Bd3 {[%emt 0:00:06]} Bxg4 {[%emt 0:00:35]} 19. Bxe4+ {[%emt 0:00:06]} Kh5 {[%emt 0:00:16]} 20. Qf2 {[%emt 0:00:20]} Bxd1 {[%emt 0:01:23]} 21. Qh4# {[%emt 0:02:05]} 1-0